fUSD/lending_fUSD_20250503
["ID","MTS","AMOUNT","RATE_DAILY","PERIOD"]
[359731197,1746285039013,-4209.35,0.00019619,2]
[359731198,1746285039023,-2245.24,0.00019619,2]
[359731199,1746285039032,-531.09,0.00019619,2]
[359731200,1746285039042,-150.99,0.00019619,2]
[359731201,1746285039051,-435.18,0.00019619,2]
[359731202,1746285039061,-450.0,0.00019619,2]
[359731203,1746285039071,-450.0,0.00019619,2]
[359731204,1746285039080,-3749.26,0.00019619,2]
[359731205,1746285039090,-450.0,0.00019619,2]
[359731206,1746285039100,-625.42,0.00019619,2]
[359731207,1746285039109,-573.97,0.00019619,2]
[359731208,1746285039119,-450.0,0.00019619,2]
[359731209,1746285039128,-450.0,0.00019619,2]
[359731210,1746285039138,-450.0,0.0001962,2]
[359731211,1746285039148,-450.0,0.0001962,2]
[359731212,1746285039158,-472.79538287,0.0001962,2]
[359731213,1746285039168,-476.33421661,0.0001962,2]
[359731214,1746285039177,-465.7,0.0001962,2]
[359731215,1746285039190,-450.0,0.0001962,2]
[359731216,1746285039200,-450.0,0.0001962,2]
[359731217,1746285039211,-450.0,0.0001962,2]
[359731218,1746285039220,-474.06297841,0.0001962,2]
[359731219,1746285039230,-450.0,0.0001962,2]
[359731220,1746285039239,-473.63817928,0.0001962,2]
[359731221,1746285039249,-474.44796838,0.0001962,2]
[359731222,1746285039259,-450.0,0.0001962,2]
[359731223,1746285039268,-500.0,0.0001962,2]
[359731224,1746285039278,-474.22776786,0.0001962,2]
[359731225,1746285039288,-450.0,0.0001962,2]
[359731226,1746285039297,-450.0,0.0001962,2]
[359731227,1746285039306,-450.0,0.0001962,2]
[359731228,1746285039316,-450.0,0.0001962,2]
[359731229,1746285039325,-450.0,0.0001962,2]
[359731230,1746285039335,-450.0,0.0001962,2]
[359731231,1746285039344,-450.0,0.0001962,2]
[359731232,1746285039353,-450.0,0.0001962,2]
[359731233,1746285039362,-450.0,0.0001962,2]
[359731234,1746285039372,-450.0,0.0001962,2]
[359731235,1746285039383,-450.0,0.0001962,2]
[359731236,1746285039392,-450.0,0.0001962,2]
[359731237,1746285039402,-406.62245349,0.0001962,2]
[359731238,1746285039411,-450.0,0.0001962,2]
[359731239,1746285039421,-450.0,0.0001962,2]
[359731240,1746285039430,-450.0,0.0001962,2]
[359731241,1746285039440,-450.0,0.0001962,2]
[359731242,1746285039450,-450.0,0.0001962,2]
[359731243,1746285039459,-499.04539545,0.0001962,2]
[359731244,1746285039469,-450.0,0.0001962,2]
[359731245,1746285039478,-858.0,0.0001962,2]
[359731246,1746285039489,-450.0,0.0001962,2]
[359731247,1746285039498,-450.0,0.0001962,2]
[359731248,1746285039508,-450.0,0.0001962,2]
[359731249,1746285039517,-450.0,0.0001962,2]
[359731250,1746285039527,-450.0,0.0001962,2]
[359731251,1746285039536,-450.0,0.0001962,2]
[359731252,1746285039547,-450.0,0.0001962,2]
[359731253,1746285039556,-450.0,0.0001962,2]
[359731254,1746285039565,-495.78440254,0.0001962,2]
[359731255,1746285039575,-550.01,0.0001962,2]
[359731256,1746285039584,-450.0,0.0001962,2]
[359731257,1746285039593,-450.0,0.0001962,2]
[359731258,1746285039603,-450.0,0.0001962,2]
[359731259,1746285039612,-851.55,0.0001962,2]
[359731260,1746285039622,-674.72,0.0001962,2]
[359731261,1746285039632,-450.0,0.0001962,2]
[359731262,1746285039641,-450.0,0.0001962,2]
[359731263,1746285039651,-450.0,0.0001962,2]
[359731264,1746285039660,-450.0,0.0001962,2]
[359731265,1746285039669,-462.55021192,0.0001962,2]
[359731266,1746285039679,-566.40820346,0.0001962,2]
[359731267,1746285039688,-300.0,0.0001962,2]
[359731268,1746285039698,-578.12,0.0001962,2]
[359731269,1746285039707,-450.0,0.0001962,2]
[359731270,1746285039717,-450.0,0.0001962,2]
[359731271,1746285039726,-450.0,0.0001962,2]
[359731272,1746285039736,-450.0,0.0001962,2]
[359731273,1746285039745,-450.0,0.0001962,2]
[359731274,1746285039755,-450.0,0.0001962,2]
[359731275,1746285039764,-450.0,0.0001962,2]
[359731276,1746285039773,-450.0,0.0001962,2]
[359731277,1746285039782,-450.0,0.0001962,2]
[359731278,1746285039793,-450.0,0.0001962,2]
[359731279,1746285039802,-2420.63,0.0001962,2]
[359731280,1746285039812,-450.0,0.0001962,2]
[359731281,1746285039821,-450.0,0.0001962,2]
[359731282,1746285039830,-450.0,0.0001962,2]
[359731283,1746285039839,-452.66416676,0.0001962,2]
[359731284,1746285039849,-450.0,0.0001962,2]
[359731285,1746285039858,-450.0,0.0001962,2]
[359731286,1746285039868,-450.0,0.0001962,2]
[359731287,1746285039878,-534.07,0.0001962,2]
[359731288,1746285039887,-450.0,0.0001962,2]
[359731289,1746285039897,-588.98,0.0001962,2]
[359731290,1746285039906,-1147.94,0.0001962,2]
[359731291,1746285039920,-450.0,0.0001962,2]
[359731292,1746285039930,-503.21061387,0.0001962,2]
[359731293,1746285039939,-450.0,0.0001962,2]
[359731294,1746285039948,-585.96399907,0.0001962,2]
[359731295,1746285039958,-450.0,0.0001962,2]
[359731296,1746285039968,-1212.54,0.0001962,2]
[359731297,1746285039978,-450.0,0.0001962,2]
[359731298,1746285039987,-450.0,0.0001962,2]
[359731299,1746285039998,-412.52998212,0.0001962,2]
[359731300,1746285040008,-450.0,0.0001962,2]
[359731301,1746285040019,-450.0,0.0001962,2]
[359731302,1746285040028,-524.3,0.0001962,2]
[359731303,1746285040039,-450.0,0.0001962,2]
[359731304,1746285040048,-450.0,0.0001962,2]
[359731305,1746285040058,-411.68950583,0.0001962,2]
[359731306,1746285040068,-450.0,0.0001962,2]
[359731307,1746285040078,-472.83333276,0.0001962,2]
[359731308,1746285040088,-470.48,0.0001962,2]
[359731309,1746285040098,-450.0,0.0001962,2]
[359731310,1746285040107,-463.1561537,0.0001962,2]
[359731311,1746285040116,-450.0,0.0001962,2]
[359731312,1746285040126,-475.65,0.0001962,2]
[359731313,1746285040135,-1083.21,0.0001962,2]
[359731314,1746285040145,-450.0,0.0001962,2]
[359731315,1746285040154,-450.0,0.0001962,2]
[359731316,1746285040163,-450.0,0.0001962,2]
[359731317,1746285040172,-450.0,0.0001962,2]
[359731318,1746285040181,-647.48,0.0001962,2]
[359731320,1746285040190,-450.0,0.0001962,2]
[359731321,1746285040199,-450.0,0.0001962,2]
[359731322,1746285040209,-463.78,0.0001962,2]
[359731323,1746285040218,-450.0,0.0001962,2]
[359731324,1746285040227,-1147.65,0.0001962,2]
[359731325,1746285040236,-450.0,0.0001962,2]
[359731326,1746285040246,-450.0,0.0001962,2]
[359731327,1746285040256,-581.94,0.0001962,2]
[359731328,1746285040266,-1036.76,0.0001962,2]
[359731329,1746285040276,-450.0,0.0001962,2]
[359731330,1746285040286,-450.0,0.0001962,2]
[359731331,1746285040296,-1272.93,0.0001962,2]
[359731332,1746285040306,-450.0,0.0001962,2]
[359731333,1746285040315,-565.27,0.0001962,2]
[359731334,1746285040325,-98699.86,0.0001962,2]
[359731335,1746285040334,-450.0,0.0001962,2]
[359731336,1746285040343,-521.17,0.0001962,2]
[359731337,1746285040353,-450.0,0.0001962,2]
[359731338,1746285040363,-633.19,0.0001962,2]
[359731339,1746285040372,-450.0,0.0001962,2]
[359731340,1746285040382,-518.85,0.0001962,2]
[359731341,1746285040391,-450.0,0.0001962,2]
[359731342,1746285040401,-450.0,0.0001962,2]
[359731343,1746285040411,-498.13,0.0001962,2]
[359731344,1746285040420,-4390.82,0.0001962,2]
[359731345,1746285040429,-450.0,0.00019621,2]
[359731346,1746285040439,-450.0,0.00019621,2]
[359731347,1746285040448,-500.0,0.00019621,2]
[359731348,1746285040457,-334.33492292,0.00019621,2]
[359731349,1746285040467,-450.0,0.00019621,2]
[359731350,1746285040476,-450.0,0.00019621,2]
[359731351,1746285040485,-512.40616649,0.00019621,2]
[359731352,1746285040495,-450.0,0.00019621,2]
[359731353,1746285040504,-450.0,0.00019621,2]
[359731354,1746285040513,-450.0,0.00019621,2]
[359731355,1746285040523,-450.0,0.00019621,2]
[359731356,1746285040533,-450.0,0.00019621,2]
[359731357,1746285040542,-450.0,0.00019621,2]
[359731358,1746285040551,-450.44078716,0.00019676,2]
[359731359,1746285040560,-161.897465,0.00019676,2]
[359731360,1746285040570,-1677.0,0.000197,2]
[359731361,1746285040579,-450.44078709,0.00019701,2]
[359731362,1746285040589,-450.0,0.00019709,2]
[359731363,1746285040598,-450.0,0.00019709,2]
[359731364,1746285040607,-450.0,0.00019709,2]
[359731365,1746285040617,-520.31,0.00019709,2]
[359731366,1746285040627,-450.0,0.00019709,2]
[359731367,1746285040636,-450.0,0.00019709,2]
[359731368,1746285040645,-450.0,0.00019709,2]
[359731369,1746285040654,-777.24,0.00019709,2]
[359731370,1746285040664,-450.0,0.00019709,2]
[359731371,1746285040673,-468.70797676,0.00019709,2]
[359731372,1746285040683,-450.0,0.00019709,2]
[359731373,1746285040692,-1821.57,0.00019709,2]
[359731374,1746285040702,-450.0,0.00019709,2]
[359731375,1746285040711,-450.0,0.00019709,2]
[359731376,1746285040721,-450.0,0.00019709,2]
[359731377,1746285040731,-450.0,0.00019709,2]
[359731378,1746285040740,-512.91345261,0.00019709,2]
[359731379,1746285040750,-450.0,0.00019709,2]
[359731380,1746285040759,-3868.99,0.00019709,2]
[359731381,1746285040769,-450.0,0.00019709,2]
[359731382,1746285040778,-450.0,0.00019709,2]
[359731383,1746285040788,-450.44078709,0.00019726,2]
[359731384,1746285040797,-161.89746498,0.00019732,2]
[359731385,1746285040807,-450.44078709,0.00019751,2]
[359731386,1746285040816,-1658.13,0.00019766,2]
[359731387,1746285040826,-500.0,0.00019775,2]
[359731388,1746285040835,-500.0,0.00019775,2]
[359731389,1746285040845,-573.27821985,0.00019775,2]
[359731390,1746285040854,-500.0,0.00019775,2]
[359731391,1746285040864,-500.0,0.00019775,2]
[359731392,1746285040874,-450.44078709,0.00019776,2]
[359731393,1746285040883,-450.0,0.00019776,2]
[359731395,1746285040893,-450.0,0.00019776,2]
[359731397,1746285040905,-450.0,0.00019776,2]
[359731399,1746285040918,-450.0,0.00019776,2]
[359731401,1746285040928,-450.0,0.00019776,2]
[359731402,1746285040937,-450.0,0.00019776,2]
[359731403,1746285040947,-450.0,0.00019776,2]
[359731404,1746285040957,-450.0,0.00019776,2]
[359731405,1746285040967,-450.0,0.00019776,2]
[359731406,1746285040976,-450.0,0.00019776,2]
[359731407,1746285040986,-450.0,0.00019776,2]
[359731408,1746285040996,-450.0,0.00019776,2]
[359731409,1746285041005,-488.93,0.00019776,2]
[359731410,1746285041015,-450.0,0.00019776,2]
[359731412,1746285041024,-450.0,0.00019776,2]
[359731413,1746285041034,-450.0,0.00019776,2]
[359731414,1746285041043,-450.0,0.00019776,2]
[359731415,1746285041052,-450.0,0.00019776,2]
[359731416,1746285041062,-450.0,0.00019776,2]
[359731417,1746285041071,-728.74,0.00019776,2]
[359731418,1746285041081,-157.98,0.00019776,2]
[359731419,1746285041090,-450.0,0.00019776,2]
[359731420,1746285041100,-450.0,0.00019776,2]
[359731421,1746285041109,-544.75,0.00019776,2]
[359731422,1746285041118,-450.0,0.00019776,2]
[359731423,1746285041127,-501.2,0.00019776,2]
[359731424,1746285041137,-450.0,0.00019776,2]
[359731425,1746285041146,-397.0554967,0.00019776,2]
[359731426,1746285041155,-272.83,0.00019776,2]
[359731427,1746285041165,-450.0,0.00019776,2]
[359731428,1746285041174,-450.0,0.00019776,2]
[359731429,1746285041183,-450.0,0.00019776,2]
[359731430,1746285041193,-450.0,0.00019776,2]
[359731431,1746285041202,-450.0,0.00019776,2]
[359731432,1746285041211,-450.0,0.00019776,2]
[359731433,1746285041220,-450.0,0.00019776,2]
[359731434,1746285041229,-450.0,0.00019776,2]
[359731435,1746285041239,-458.68,0.00019776,2]
[359731436,1746285041248,-450.0,0.00019776,2]
[359731437,1746285041258,-450.0,0.00019776,2]
[359731438,1746285041267,-450.0,0.00019776,2]
[359731439,1746285041276,-450.0,0.00019776,2]
[359731440,1746285041286,-450.0,0.00019776,2]
[359731441,1746285041295,-450.0,0.00019776,2]
[359731442,1746285041304,-450.0,0.00019776,2]
[359731443,1746285041313,-450.0,0.00019776,2]
[359731444,1746285041323,-450.0,0.00019776,2]
[359731445,1746285041333,-450.0,0.00019776,2]
[359731446,1746285041342,-450.0,0.00019776,2]
[359731447,1746285041352,-572.24,0.00019776,2]
[359731448,1746285041362,-450.0,0.00019776,2]
[359731449,1746285041372,-450.0,0.00019776,2]
[359731450,1746285041382,-450.0,0.00019776,2]
[359731451,1746285041391,-511.88,0.00019776,2]
[359731452,1746285041400,-450.0,0.00019776,2]
[359731453,1746285041410,-450.0,0.00019776,2]
[359731454,1746285041419,-450.0,0.00019776,2]
[359731455,1746285041428,-450.0,0.00019776,2]
[359731456,1746285041438,-1828.02,0.00019776,2]
[359731457,1746285041447,-450.0,0.00019776,2]
[359731458,1746285041456,-679.22,0.00019776,2]
[359731459,1746285041465,-390.10366394,0.00019776,2]
[359731460,1746285041475,-450.0,0.00019776,2]
[359731461,1746285041484,-838.36,0.00019776,2]
[359731462,1746285041493,-1323.57,0.00019776,2]
[359731463,1746285041503,-884.68,0.00019776,2]
[359731464,1746285041512,-450.0,0.00019776,2]
[359731465,1746285041521,-4727.26,0.00019776,2]
[359731466,1746285041530,-450.0,0.00019776,2]
[359731467,1746285041539,-450.0,0.00019776,2]
[359731468,1746285041548,-450.0,0.00019776,2]
[359731469,1746285041557,-450.0,0.00019776,2]
[359731470,1746285041566,-450.0,0.00019776,2]
[359731471,1746285041575,-5219.39,0.00019776,2]
[359731472,1746285041584,-487.62,0.00019776,2]
[359731473,1746285041593,-450.0,0.00019776,2]
[359731474,1746285041602,-4734.01,0.00019776,2]
[359731475,1746285041611,-450.0,0.00019776,2]
[359731476,1746285041620,-776.88,0.00019776,2]
[359731477,1746285041630,-717.26,0.00019776,2]
[359731478,1746285041640,-450.0,0.00019776,2]
[359731479,1746285041649,-479.20352983,0.00019776,2]
[359731480,1746285041658,-482.04692344,0.00019776,2]
[359731481,1746285041668,-473.97622075,0.00019776,2]
[359731482,1746285041677,-655.76,0.00019776,2]
[359731483,1746285041687,-450.0,0.00019776,2]
[359731484,1746285041696,-450.0,0.00019776,2]
[359731485,1746285041706,-5203.93,0.00019776,2]
[359731486,1746285041716,-450.0,0.00019776,2]
[359731487,1746285041726,-450.0,0.00019776,2]
[359731488,1746285041735,-97935.7,0.00019776,2]
[359731489,1746285041744,-450.0,0.00019776,2]
[359731490,1746285041754,-450.0,0.00019776,2]
[359731491,1746285041763,-450.0,0.00019776,2]
[359731492,1746285041772,-1765.34,0.00019776,2]
[359731493,1746285041782,-450.0,0.00019776,2]
[359731494,1746285041961,-450.0,0.00019776,2]
[359731495,1746285041998,-450.0,0.00019776,2]
[359731496,1746285042008,-4436.42,0.00019776,2]
[359731497,1746285042018,-514.47,0.00019776,2]
[359731498,1746285042027,-541.9,0.00019776,2]
[359731499,1746285042037,-450.0,0.00019776,2]
[359731500,1746285042046,-20514.36,0.00019776,2]
[359731501,1746285042056,-575.31,0.00019776,2]
[359731502,1746285042065,-1431.55,0.00019776,2]
[359731503,1746285042075,-13484.45,0.00019776,2]
[359731504,1746285042084,-450.0,0.00019776,2]
[359731505,1746285042094,-480.61657555,0.00019776,2]
[359731506,1746285042103,-450.0,0.00019776,2]
[359731507,1746285042113,-585.43,0.00019776,2]
[359731508,1746285042123,-185.50934107,0.00019776,2]
[359731509,1746285042134,-450.0,0.00019776,2]
[359731510,1746285042145,-450.0,0.00019776,2]
[359731511,1746285042155,-450.0,0.00019776,2]
[359731512,1746285042165,-644.02,0.00019776,2]
[359731513,1746285042175,-1053.17,0.00019776,2]
[359731514,1746285042186,-450.0,0.00019776,2]
[359731515,1746285042196,-450.0,0.00019776,2]
[359731516,1746285042206,-450.0,0.00019776,2]
[359731517,1746285042215,-450.0,0.00019776,2]
[359731518,1746285042224,-450.0,0.00019776,2]
[359731519,1746285042233,-450.0,0.00019776,2]
[359731520,1746285042243,-627.18,0.00019776,2]
[359731521,1746285042252,-450.0,0.00019776,2]
[359731522,1746285042261,-276.74108748,0.00019776,2]
[359731523,1746285042271,-1569.46,0.00019776,2]
[359731524,1746285042280,-450.0,0.00019776,2]
[359731525,1746285042289,-280.71919491,0.00019776,2]
[359731526,1746285042299,-474.22018623,0.00019776,2]
[359731527,1746285042308,-450.0,0.00019776,2]
[359731528,1746285042318,-450.0,0.00019776,2]
[359731529,1746285042327,-450.0,0.00019776,2]
[359731530,1746285042337,-740.53,0.00019776,2]
[359731531,1746285042346,-412.14685447,0.00019776,2]
[359731532,1746285042355,-450.0,0.00019776,2]
[359731533,1746285042365,-479.31271413,0.00019776,2]
[359731534,1746285042375,-161.89746498,0.00019788,2]
[359731535,1746285042384,-1588.2608371,0.00019799,2]
[359731536,1746285042395,-1940.0,0.000198,2]
[359731537,1746285042404,-450.44078709,0.000198,2]
[359731538,1746285042415,-450.44078709,0.00019825,2]
[359731539,1746285042425,-450.0,0.00019835,2]
[359731540,1746285042436,-450.0,0.00019835,2]
[359731541,1746285042446,-450.0,0.00019835,2]
[359731542,1746285042456,-450.0,0.00019835,2]
[359731543,1746285042465,-450.0,0.00019835,2]
[359731544,1746285042475,-666.44,0.00019835,2]
[359731545,1746285042485,-450.0,0.00019835,2]
[359731546,1746285042495,-450.0,0.00019835,2]
[359731547,1746285042506,-450.0,0.00019835,2]
[359731548,1746285042516,-450.0,0.00019835,2]
[359731549,1746285042527,-450.0,0.00019835,2]
[359731550,1746285042537,-450.0,0.00019835,2]
[359731551,1746285042546,-450.0,0.00019835,2]
[359731552,1746285042555,-450.0,0.00019835,2]
[359731553,1746285042565,-450.0,0.00019835,2]
[359731554,1746285042575,-450.0,0.00019835,2]
[359731555,1746285042585,-450.0,0.00019835,2]
[359731556,1746285042595,-450.0,0.00019835,2]
[359731557,1746285042605,-1002.22,0.00019835,2]
[359731558,1746285042615,-450.0,0.00019835,2]
[359731559,1746285042626,-450.0,0.00019835,2]
[359731560,1746285042636,-500.0,0.00019835,2]
[359731561,1746285042646,-450.0,0.00019835,2]
[359731562,1746285042656,-450.0,0.00019835,2]
[359731563,1746285042667,-450.0,0.00019835,2]
[359731564,1746285042676,-450.0,0.00019835,2]
[359731565,1746285042685,-450.0,0.00019835,2]
[359731566,1746285042695,-450.0,0.00019835,2]
[359731567,1746285042704,-450.0,0.00019835,2]
[359731568,1746285042714,-450.0,0.00019835,2]
[359731569,1746285042723,-450.0,0.00019835,2]
[359731570,1746285042732,-450.0,0.00019835,2]
[359731571,1746285042742,-450.0,0.00019835,2]
[359731572,1746285042752,-450.0,0.00019835,2]
[359731573,1746285042761,-450.0,0.00019835,2]
[359731574,1746285042770,-450.0,0.00019835,2]
[359731575,1746285042780,-450.0,0.00019835,2]
[359731576,1746285042789,-450.0,0.00019835,2]
[359731577,1746285042799,-450.0,0.00019835,2]
[359731578,1746285042809,-450.0,0.00019835,2]
[359731579,1746285042818,-450.0,0.00019835,2]
[359731580,1746285042828,-450.0,0.00019835,2]
[359731581,1746285042838,-671.71,0.00019835,2]
[359731582,1746285042848,-705.97,0.00019835,2]
[359731583,1746285042858,-450.0,0.00019835,2]
[359731584,1746285042867,-450.0,0.00019835,2]
[359731585,1746285042877,-289.55208868,0.00019835,2]
[359731586,1746285042887,-450.0,0.00019835,2]
[359731587,1746285042896,-450.0,0.00019835,2]
[359731588,1746285042908,-530.07,0.00019835,2]
[359731589,1746285042922,-450.0,0.00019835,2]
[359731590,1746285042932,-736.81,0.00019835,2]
[359731591,1746285042942,-450.0,0.00019835,2]
[359731592,1746285042954,-2342.01,0.00019835,2]
[359731593,1746285042964,-450.0,0.00019835,2]
[359731594,1746285042974,-483.06,0.00019835,2]
[359731595,1746285042984,-450.0,0.00019835,2]
[359731596,1746285042995,-450.0,0.00019835,2]
[359731597,1746285043004,-450.0,0.00019835,2]
[359731598,1746285043014,-450.0,0.00019835,2]
[359731599,1746285043023,-500.0,0.00019835,2]
[359731600,1746285043032,-486.47,0.00019835,2]
[359731601,1746285043042,-450.0,0.00019835,2]
[359731602,1746285043052,-450.0,0.00019835,2]
[359731603,1746285043061,-1677.02,0.00019835,2]
[359731604,1746285043071,-589.57,0.00019835,2]
[359731605,1746285043081,-469.4,0.00019835,2]
[359731607,1746285043091,-450.0,0.00019835,2]
[359731608,1746285043101,-450.0,0.00019835,2]
[359731609,1746285043111,-450.0,0.00019835,2]
[359731613,1746285043122,-586.02,0.00019835,2]
[359731616,1746285043132,-450.0,0.00019835,2]
[359731619,1746285043142,-450.0,0.00019835,2]
[359731621,1746285043153,-450.0,0.00019835,2]
[359731623,1746285043163,-523.20208212,0.00019835,2]
[359731625,1746285043172,-2021.61,0.00019835,2]
[359731627,1746285043181,-450.0,0.00019835,2]
[359731629,1746285043191,-564.89707459,0.00019835,2]
[359731630,1746285043202,-510.92426429,0.00019835,2]
[359731631,1746285043213,-533.95367948,0.00019835,2]
[359731632,1746285043222,-644.59,0.00019835,2]
[359731633,1746285043231,-999.0,0.00019835,2]
[359731634,1746285043241,-450.0,0.00019835,2]
[359731635,1746285043251,-647.64,0.00019835,2]
[359731636,1746285043262,-553.78,0.00019835,2]
[359731637,1746285043272,-529.54923781,0.00019835,2]
[359731638,1746285043281,-450.0,0.00019835,2]
[359731639,1746285043291,-450.0,0.00019835,2]
[359731640,1746285043300,-450.0,0.00019835,2]
[359731641,1746285043310,-450.0,0.00019835,2]
[359731642,1746285043320,-450.0,0.00019835,2]
[359731643,1746285043330,-450.0,0.00019835,2]
[359731644,1746285043339,-450.0,0.00019835,2]
[359731645,1746285043351,-450.0,0.00019835,2]
[359731646,1746285043359,-483.42226741,0.00019835,2]
[359731647,1746285043369,-840.81,0.00019835,2]
[359731648,1746285043378,-450.0,0.00019835,2]
[359731649,1746285043387,-883.04,0.00019835,2]
[359731650,1746285043397,-450.0,0.00019835,2]
[359731651,1746285043406,-450.0,0.00019835,2]
[359731652,1746285043416,-450.0,0.00019835,2]
[359731653,1746285043425,-450.0,0.00019835,2]
[359731654,1746285043434,-1735.52,0.00019835,2]
[359731655,1746285043443,-410.11033418,0.00019835,2]
[359731656,1746285043455,-450.0,0.00019835,2]
[359731657,1746285043463,-450.0,0.00019835,2]
[359731658,1746285043473,-353.16523101,0.00019835,2]
[359731659,1746285043483,-451.56,0.00019835,2]
[359731660,1746285043492,-450.0,0.00019835,2]
[359731661,1746285043501,-450.0,0.00019835,2]
[359731662,1746285043510,-450.0,0.00019835,2]
[359731663,1746285043521,-450.0,0.00019835,2]
[359731664,1746285043530,-474.32117263,0.00019835,2]
[359731665,1746285043540,-450.0,0.00019835,2]
[359731667,1746285043549,-800.43,0.00019835,2]
[359731669,1746285043558,-467.47,0.00019835,2]
[359731671,1746285043567,-547.90544793,0.00019835,2]
[359731673,1746285043577,-450.0,0.00019835,2]
[359731675,1746285043586,-450.0,0.00019835,2]
[359731676,1746285043597,-573.94,0.00019835,2]
[359731677,1746285043606,-450.0,0.00019835,2]
[359731678,1746285043616,-450.0,0.00019835,2]
[359731679,1746285043625,-452.3,0.00019835,2]
[359731680,1746285043635,-450.0,0.00019835,2]
[359731681,1746285043644,-450.0,0.00019835,2]
[359731682,1746285043653,-450.0,0.00019835,2]
[359731683,1746285043663,-450.0,0.00019835,2]
[359731684,1746285043672,-466.82,0.00019835,2]
[359731685,1746285043681,-290.0961764,0.00019835,2]
[359731686,1746285043690,-450.0,0.00019835,2]
[359731687,1746285043699,-450.0,0.00019835,2]
[359731688,1746285043709,-695.97,0.00019835,2]
[359731689,1746285043718,-450.0,0.00019835,2]
[359731690,1746285043727,-450.0,0.00019835,2]
[359731691,1746285043737,-450.0,0.00019835,2]
[359731692,1746285043746,-618.06,0.00019835,2]
[359731693,1746285043756,-670.9,0.00019835,2]
[359731694,1746285043766,-450.0,0.00019835,2]
[359731695,1746285043775,-450.0,0.00019835,2]
[359731696,1746285043785,-450.0,0.00019835,2]
[359731697,1746285043795,-471.59,0.00019835,2]
[359731698,1746285043804,-450.0,0.00019835,2]
[359731699,1746285043814,-450.0,0.00019835,2]
[359731700,1746285043824,-450.0,0.00019835,2]
[359731701,1746285043834,-500.0,0.00019836,2]
[359731702,1746285043843,-161.89746498,0.00019844,2]
[359731703,1746285043853,-450.44078709,0.0001985,2]
[359731704,1746285043862,-500.0,0.00019873,2]
[359731705,1746285043872,-508.08785745,0.00019873,2]
[359731706,1746285043882,-501.02155493,0.00019873,2]
[359731707,1746285043892,-500.0,0.00019873,2]
[359731708,1746285043902,-500.0,0.00019873,2]
[359731709,1746285043912,-500.0,0.00019873,2]
[359731710,1746285043926,-500.0,0.00019873,2]
[359731711,1746285043936,-500.0,0.00019873,2]
[359731712,1746285043947,-500.0,0.00019873,2]
[359731713,1746285043958,-500.0,0.00019873,2]
[359731714,1746285043968,-17336.08359246,0.00019874,2]
[359731715,1746285043978,-450.44078709,0.00019875,2]
[359731716,1746285043988,-1041.039,0.00019876,2]
[359731717,1746285043998,-1299.0,0.00019876,2]
[359731718,1746285044008,-1207.0,0.00019877,2]
[359731719,1746285044018,-797.0,0.00019877,2]
[359731720,1746285044027,-914.0,0.00019877,2]